bitfinex/quotes_ETHUSD_20250603
["timestamp","ask_amount","ask_price","bid_price","bid_amount"]
[1748958192414,4.64814676,2625.3,2624.6,3.81007383]
[1748958192609,3.80932205,2625.2,2624.5,5.54455117]
[1748958192813,0.7556,2625.2,2624.5,1.73432077]
[1748958193016,4.56491055,2625.2,2624.4,6.84103231]
[1748958193329,4.56491055,2625.2,2624.5,3.81024223]
[1748958193330,0.7556,2625.2,2624.5,3.81024223]
[1748958193479,4.56489919,2625.2,2624.5,3.81024223]
[1748958193676,0.7556,2625.2,2624.4,6.84109]
[1748958193877,0.7556,2625.2,2624.6,3.81008814]
[1748958194077,4.56485143,2625.2,2624.5,3.81017103]
[1748958194490,0.7556,2625.2,2624.5,3.81017103]
[1748958194720,0.7556,2625.2,2624.3,1.902]
[1748958194721,4.2658934,2625.1,2624.3,1.902]
[1748958194919,3.8095238,2625.0,2624.3,5.71245288]
[1748958195080,4.26593507,2625.1,2624.4,3.81037736]
[1748958195399,4.26585908,2625.1,2624.4,3.81032228]
[1748958195604,3.80961849,2625.0,2624.3,1.902]
[1748958195793,3.80975164,2624.9,2624.3,1.902]
[1748958196000,0.8175,2624.8,2624.3,1.902]
[1748958196902,0.8175,2624.8,2624.3,5.71243238]
[1748958197302,0.8175,2624.8,2624.3,7.6555239]
[1748958197490,0.8175,2624.8,2624.4,3.81026939]
[1748958198316,0.8175,2624.8,2624.5,3.81022998]
[1748958198522,0.8175,2624.8,2624.5,3.81017764]
[1748958198891,0.8175,2624.8,2624.3,3.84504324]
[1748958199080,0.8175,2624.8,2624.3,1.902]
[1748958200919,4.62731969,2624.8,2624.3,1.902]
[1748958201133,1.358,2624.7,2624.1,0.02]
[1748958201431,0.7998,2624.2,2624.1,0.02]
[1748958201794,4.61048516,2624.2,2624.1,0.02]
[1748958201993,5.45259061,2624.2,2624.1,0.02]
[1748958202196,1.64190545,2624.2,2624.1,0.02]
[1748958202395,5.45259061,2624.2,2624.1,0.02]
[1748958205018,6.00259061,2624.2,2624.1,0.02]
[1748958205221,3.81090877,2624.1,2623.1,21.34992031]
[1748958205431,4.41113445,2624.1,2623.1,12.64795546]
[1748958205733,0.7998,2624.2,2623.2,11.78622352]
[1748958205895,0.7998,2624.2,2623.6,3.81147238]
[1748958206098,4.61049802,2624.2,2623.5,3.81163376]
[1748958206330,3.81083875,2624.1,2623.5,6.646]
[1748958206633,3.8108926,2624.1,2623.5,6.646]
[1748958206818,4.61052295,2624.2,2623.5,6.646]
[1748958206819,3.81108593,2624.0,2623.5,6.646]
[1748958207019,4.56912891,2623.8,2623.1,3.81227577]
[1748958208034,0.7578,2623.8,2623.0,15.02494242]
[1748958208210,4.56911031,2623.8,2623.1,3.81220047]
[1748958209821,4.56907602,2623.8,2623.0,18.46138388]
[1748958209999,4.56907602,2623.8,2623.1,3.81228031]
[1748958210000,0.7578,2623.8,2623.1,3.81228031]
[1748958210199,0.8254,2624.1,2623.5,3.81163531]
[1748958210414,4.63623785,2624.1,2623.4,3.81178462]
[1748958210816,4.63623785,2624.1,2623.2,5.65821159]
[1748958211027,0.8254,2624.1,2623.2,1.84612803]
[1748958211229,0.8254,2624.1,2623.2,6.639]
[1748958211429,4.63631534,2624.1,2623.4,3.81181333]
[1748958211799,4.6362395,2624.1,2623.4,3.81176437]
[1748958212255,4.63629956,2624.1,2623.4,3.81182131]
[1748958212444,3.81098417,2624.0,2623.3,3.81192221]
[1748958212621,3.81098417,2624.0,2623.4,1.42630027]
[1748958212817,4.63630505,2624.1,2623.4,1.42630027]
[1748958213034,3.81099603,2624.0,2623.4,1.42630027]
[1748958213546,3.81103107,2624.0,2623.4,6.634]
[1748958214147,3.81114745,2623.9,2623.4,6.634]
[1748958214446,3.81105655,2624.0,2623.4,6.634]
[1748958214606,3.81121339,2623.9,2623.4,6.634]
[1748958215431,3.81127562,2623.8,2623.4,6.634]
[1748958216146,3.81117627,2623.9,2623.4,6.634]
[1748958216691,3.81104701,2624.0,2623.4,6.634]
[1748958216892,0.8254,2624.1,2623.4,7.86560921]
[1748958217198,0.7703,2624.6,2623.9,3.81104313]
[1748958217496,0.7703,2624.6,2624.0,4.1919677]
[1748958217706,0.7703,2624.6,2623.6,4.27694954]
[1748958217707,0.7703,2624.6,2623.8,3.81118554]
[1748958217997,4.58046959,2624.6,2623.9,3.81099856]
[1748958218200,0.7703,2624.6,2623.7,3.81134392]
[1748958218410,0.55,2624.5,2623.4,5.04344536]
[1748958218543,0.55,2624.5,2623.7,6.62]
[1748958218544,3.81071883,2624.2,2623.7,6.62]
[1748958219158,0.7572,2624.1,2623.5,6.621]
[1748958219459,4.56817202,2624.1,2623.2,1.06210928]
[1748958219659,4.56817202,2624.1,2623.3,11.81192925]
[1748958219660,3.8110508,2624.0,2623.3,11.81192925]
[1748958219875,3.8111304,2623.9,2623.3,8.0]
[1748958220263,3.81099387,2624.0,2623.3,8.0]
[1748958220477,4.60994037,2623.8,2623.0,8.0]
[1748958220675,4.60994037,2623.8,2622.9,10.444471]
[1748958220676,0.7986,2623.8,2622.9,10.444471]
[1748958220890,4.6099294,2623.8,2622.9,8.0]
[1748958221096,3.81149763,2623.7,2623.0,6.631]
[1748958221388,4.60992071,2623.8,2623.1,3.81226157]
[1748958221690,1.30527401,2623.8,2622.9,14.629]
[1748958221890,5.11655192,2623.8,2623.1,3.81219701]
[1748958222464,1.30527401,2623.8,2623.0,6.633]
[1748958222667,0.7986,2623.8,2623.2,3.81205099]
[1748958222874,0.7986,2623.8,2623.0,6.633]
[1748958223207,3.81147395,2623.7,2622.9,8.0]
[1748958223345,0.7923,2623.4,2622.9,8.0]
[1748958223750,0.8147,2623.8,2622.9,8.0]
[1748958223982,0.8147,2623.8,2623.3,3.81191537]
[1748958224294,4.62597418,2623.8,2623.1,3.81221264]
[1748958224802,4.62597418,2623.8,2623.0,2.64167925]
[1748958224803,0.8147,2623.8,2623.0,3.81233041]
[1748958224951,3.8114896,2623.7,2623.0,3.81233041]
[1748958225307,0.8147,2623.8,2622.8,0.38044781]
[1748958225455,0.8147,2623.8,2623.0,8.0]
[1748958225780,4.62599226,2623.8,2623.0,11.8123499]
[1748958225982,3.81150683,2623.7,2623.0,11.8123499]
[1748958226382,4.6184963,2623.6,2623.0,8.0]
[1748958226899,3.81178429,2623.5,2623.0,8.0]
[1748958227096,0.84303245,2623.5,2623.0,8.0]
[1748958227457,0.8069,2623.6,2623.1,3.81226599]
[1748958227853,0.8069,2623.6,2623.0,8.4654]
[1748958228053,0.7852,2624.0,2623.0,8.4654]
[1748958228268,0.7852,2624.0,2623.4,3.81177544]
[1748958228698,4.59623862,2624.0,2623.3,3.81191846]
[1748958228996,2.41590356,2624.0,2623.5,3.81168892]
[1748958229297,6.22688886,2624.0,2623.3,3.81187505]
[1748958229600,6.22696766,2624.0,2623.2,3.81203892]
[1748958229894,2.41590356,2624.0,2623.4,10.43483146]
[1748958230096,6.22689602,2624.0,2623.4,6.623]
[1748958230799,3.8111223,2623.9,2623.4,6.623]
[1748958231006,1.79377313,2623.9,2623.4,6.623]
[1748958231208,0.7852,2624.0,2623.4,10.43483277]
[1748958231410,0.7852,2624.0,2623.5,3.811643]
[1748958231709,0.7852,2624.0,2623.4,10.43474097]
[1748958231882,0.7852,2624.0,2623.4,10.43484287]
[1748958232087,4.59627941,2624.0,2623.4,6.623]
[1748958232471,3.81113156,2623.9,2623.4,6.623]
[1748958232875,3.81112085,2623.9,2623.2,3.81211804]
[1748958233087,2.4159017,2624.0,2623.3,6.613]
[1748958233410,0.798,2624.3,2624.0,3.81096717]
[1748958233592,0.798,2624.3,2624.0,6.634]
[1748958234717,0.798,2624.3,2624.0,10.44496867]
[1748958234889,0.798,2624.3,2624.1,3.81079597]
[1748958235593,0.798,2624.3,2624.0,10.44494187]
[1748958236508,3.80996758,2624.7,2624.4,3.8103288]
[1748958236509,0.8314,2624.7,2624.4,3.8103288]
[1748958236811,0.8314,2624.7,2624.0,12.33595438]
[1748958236812,0.8314,2624.7,2624.3,3.81046375]
[1748958237713,0.8314,2624.7,2624.3,3.81043526]
[1748958238478,0.8314,2624.7,2624.2,3.81062481]
[1748958238685,0.8314,2624.7,2624.3,3.81052133]
[1748958238895,0.8314,2624.7,2624.0,8.52500204]
[1748958239101,0.8314,2624.7,2624.3,3.81045015]
[1748958239384,0.02,2624.9,2624.4,3.81034339]
[1748958239627,0.02,2624.9,2624.8,3.80981408]
[1748958239841,0.02,2624.9,2624.8,10.43481408]
[1748958240132,0.02,2624.9,2624.8,6.625]
[1748958240335,0.02,2624.9,2624.4,3.81029362]
[1748958240631,0.02,2624.9,2624.5,6.625]
[1748958240804,0.02,2624.9,2624.3,3.81046876]
[1748958241145,0.02,2624.9,2624.4,18.40845641]
[1748958241349,0.02,2624.9,2624.8,3.80981408]
[1748958241535,0.02,2624.9,2624.7,3.80988737]
[1748958242320,0.02,2624.9,2624.4,14.59808568]
[1748958242717,0.02,2624.9,2624.8,3.80981408]
[1748958242916,0.02,2624.9,2624.8,4.57180593]
[1748958243317,0.02,2624.9,2624.8,11.19980593]
[1748958243555,0.02,2624.9,2624.6,3.81002429]
[1748958243734,0.02,2624.9,2624.4,1.853]
[1748958243735,0.8327,2624.8,2624.4,1.853]
[1748958244070,0.8327,2624.8,2623.9,0.4654]
[1748958244374,0.8327,2624.8,2624.2,3.81055263]
[1748958244676,3.81016842,2624.6,2624.1,6.629]
[1748958244869,4.65541411,2624.6,2624.1,6.629]
[1748958245082,4.65541411,2624.6,2623.8,6.04714519]
[1748958245083,0.84529134,2624.6,2624.0,8.0]
[1748958245255,3.8110345,2624.0,2623.3,17.8968833]
[1748958245431,4.61352521,2623.9,2623.3,13.712]
[1748958245615,4.61352521,2623.9,2623.1,0.4654]
[1748958245616,0.8024,2623.9,2623.1,10.44014651]
[1748958245816,0.8024,2623.9,2622.9,3.81247659]
[1748958245817,3.8112661,2623.8,2622.9,3.81247659]
[1748958246182,3.8112661,2623.8,2622.8,1.852]
[1748958246183,4.61359364,2623.9,2623.2,3.8121204]
[1748958246356,5.45604097,2623.9,2623.1,3.81222819]
[1748958246558,1.64484733,2623.9,2623.2,10.43810719]
[1748958246917,1.64484733,2623.9,2623.2,6.626]
[1748958247112,0.8024,2623.9,2623.2,6.626]
[1748958247481,0.55,2623.8,2622.8,2.2350137]
[1748958247682,3.81184722,2623.4,2622.8,8.478]
[1748958247889,3.81184722,2623.4,2622.8,9.852]
[1748958248040,3.81177152,2623.5,2622.8,20.28963443]
[1748958248242,4.65364539,2623.5,2622.8,16.477]
[1748958248437,4.65364539,2623.5,2622.8,20.2896749]
[1748958248741,0.84184834,2623.5,2622.9,3.81257386]
[1748958249076,7.97408568,2623.9,2622.9,3.81257386]
[1748958249077,0.7584,2624.1,2623.2,3.81200168]
[1748958249383,0.7584,2624.1,2623.1,3.81228317]
[1748958249384,0.7584,2623.8,2623.1,3.81215715]
[1748958249677,0.7584,2623.8,2623.2,10.44313126]
[1748958250291,0.7584,2623.8,2623.2,10.44311032]
[1748958250492,0.45696167,2623.7,2622.9,1.853]
[1748958250692,0.45696167,2623.7,2623.1,6.629]
[1748958250850,4.26838313,2623.7,2623.0,3.81239516]
[1748958251054,4.26838313,2623.7,2623.0,14.629]
[1748958251055,3.81156728,2623.6,2623.0,14.629]
[1748958251292,0.55,2623.6,2622.9,1.853]
[1748958251456,0.48184101,2623.5,2622.9,16.478]
[1748958252253,0.7584,2623.6,2622.9,16.478]
[1748958252457,0.7584,2623.6,2623.2,3.81212027]
[1748958252890,0.7584,2623.6,2623.0,3.812334]
[1748958253192,0.55,2623.5,2622.9,6.625]
[1748958253381,0.55,2623.5,2623.0,3.81236906]
[1748958253579,1.06198822,2623.5,2623.0,3.81236906]
[1748958253780,0.55,2623.5,2623.0,3.81236906]
[1748958254093,0.7584,2623.6,2623.3,3.81192819]
[1748958254460,0.7584,2623.6,2623.5,3.81170192]
[1748958254658,0.7584,2623.6,2623.0,3.81238461]
[1748958254892,0.7584,2623.6,2623.0,3.81242851]
[1748958255194,0.7584,2623.6,2623.5,3.81170192]
[1748958255596,8.7043,2623.9,2623.5,3.81170192]
[1748958255799,0.8043,2623.9,2623.5,10.43570192]
[1748958255952,0.8043,2623.9,2623.6,3.81155663]
[1748958256156,3.81004301,2624.7,2623.9,3.81098119]
[1748958256352,4.61464817,2624.5,2623.8,3.81119944]
[1748958256661,4.61464817,2624.5,2623.5,6.624]
[1748958256662,0.8043,2624.5,2623.9,3.81105565]
[1748958257399,0.795,2624.4,2623.4,8.0]
[1748958257558,0.795,2624.4,2624.0,3.81088961]
[1748958257903,0.795,2624.8,2624.4,3.81026235]
[1748958258099,0.795,2624.8,2624.1,14.60208568]
[1748958258272,0.795,2624.8,2624.2,1.64550857]
[1748958258595,0.795,2624.8,2624.3,6.639]
[1748958258755,0.02,2624.9,2624.7,3.80995923]
[1748958258960,0.02,2624.9,2624.4,0.4654]
[1748958259192,0.02,2624.9,2624.6,3.8100102]
[1748958259495,0.02,2624.9,2624.5,3.81019051]
[1748958259694,0.02,2624.9,2624.5,6.637]
[1748958259898,3.8296847,2624.9,2624.2,8.0]
[1748958260197,0.8176,2624.8,2624.5,6.638]
[1748958260396,0.8176,2624.8,2624.3,6.637]
[1748958260917,0.8176,2624.8,2624.4,3.81029008]
[1748958261076,0.8176,2624.8,2624.3,6.637]
[1748958261462,0.55,2624.7,2624.2,1.853]
[1748958261700,4.87969812,2624.7,2624.2,1.853]
[1748958262016,1.06972766,2624.7,2624.0,6.641]
[1748958262218,1.06972766,2624.7,2624.2,3.81054079]
[1748958262508,0.55,2624.7,2624.2,3.81054079]
[1748958263003,0.8176,2624.8,2624.3,3.81045911]
[1748958263305,0.8176,2624.8,2624.3,3.8104311]
[1748958263602,0.8176,2624.8,2624.3,3.81047247]
[1748958263767,0.8176,2624.8,2624.3,3.81052311]
[1748958264098,0.8176,2624.8,2624.0,6.641]
[1748958264409,0.8176,2624.8,2624.5,3.81014491]
[1748958264563,0.8176,2624.8,2624.4,3.81033511]
[1748958265060,0.02,2624.9,2624.8,3.80981408]
[1748958265459,0.02,2624.9,2624.7,10.44293612]
[1748958265460,0.02,2624.9,2624.7,6.633]
[1748958265660,0.02,2624.9,2624.7,10.44295256]
[1748958265857,0.02,2624.9,2624.8,3.80981408]
[1748958266058,0.02,2624.9,2624.7,10.44287793]
[1748958266263,0.02,2624.9,2624.8,11.80981408]
[1748958267162,0.02,2624.9,2624.8,12.27521408]
[1748958267362,0.02,2624.9,2624.8,20.24929976]
[1748958267558,0.02,2624.9,2624.8,14.13321408]
[1748958267814,0.02,2624.9,2624.8,20.77121408]
[1748958267964,0.02,2624.9,2624.8,22.90645285]
[1748958268300,0.02,2624.9,2624.8,14.41045285]
[1748958268502,0.02,2624.9,2624.8,8.0]
[1748958268736,0.8176,2624.9,2624.1,1.08343888]
[1748958269009,0.8176,2624.9,2624.6,3.81000137]
[1748958269202,0.8176,2624.9,2624.5,3.81016909]
[1748958269568,0.8176,2624.9,2624.4,8.0]
[1748958270080,0.8176,2624.9,2624.6,3.80998982]
[1748958270282,0.8176,2624.9,2624.7,3.8099287]
[1748958270482,0.8176,2624.9,2624.4,11.81026375]
[1748958270805,0.8176,2624.9,2624.5,3.81024957]
[1748958271104,0.02,2624.9,2624.8,11.80981408]
[1748958271601,0.02,2624.9,2624.8,18.44881408]
[1748958272102,0.02,2624.9,2624.8,18.91421408]
[1748958272317,0.02,2624.9,2624.8,22.16983787]
[1748958272608,0.02,2625.9,2625.8,3.80836316]
[1748958272766,0.02,2625.9,2625.8,6.65]
[1748958272967,0.02,2625.9,2625.8,10.45836316]
[1748958273872,0.02,2625.9,2625.8,18.45836316]
[1748958274073,0.02,2625.9,2625.8,20.87084822]
[1748958274701,0.02,2625.9,2625.8,2.41248506]
[1748958275012,0.02,2625.9,2625.8,10.44836316]
[1748958277629,0.02,2625.9,2625.8,10.83236839]
[1748958277800,0.02,2625.9,2625.8,19.29776839]
[1748958281337,0.02,2625.9,2625.8,21.13376839]
[1748958281636,0.02,2625.9,2625.8,14.51476839]
[1748958281854,0.02,2625.9,2625.8,22.96509394]
[1748958282203,0.02,2625.9,2625.8,16.34709394]
[1748958282403,0.02,2625.9,2625.8,22.96509394]
[1748958284745,0.02,2625.9,2625.8,16.34709394]
[1748958284943,0.02,2625.9,2625.8,7.49768871]
[1748958285105,0.02,2625.9,2625.8,12.27436316]
[1748958285298,0.02,2625.9,2625.8,13.66536316]
[1748958285855,0.02,2625.9,2625.3,3.80903146]
[1748958286012,0.02,2625.9,2625.2,1.857]
[1748958286013,0.02,2625.9,2625.7,3.80840893]
[1748958286200,0.02,2625.9,2625.8,8.0]
[1748958286400,0.02,2625.9,2625.7,8.0]
[1748958286602,0.7563,2625.8,2625.4,3.80892218]
[1748958286828,0.7563,2625.8,2625.4,10.41792218]
[1748958287035,0.7563,2625.8,2625.5,8.0]
[1748958287232,0.7563,2625.8,2625.5,11.80877597]
[1748958287557,0.7563,2625.8,2625.6,3.8085748]
[1748958287738,0.02,2625.9,2625.5,8.0]
[1748958287739,0.02,2625.9,2625.8,3.80836316]
[1748958289300,0.02,2625.9,2625.8,5.66536316]
[1748958291996,0.8288,2625.9,2625.1,0.59450819]
[1748958292195,0.8288,2625.9,2625.2,1.857]
[1748958292486,0.8288,2625.9,2625.6,3.80861496]
[1748958292692,0.8288,2625.9,2625.4,8.0]
[1748958292893,0.8288,2625.9,2625.5,3.80867558]
[1748958293194,0.8288,2625.9,2625.4,10.02832145]
[1748958293489,0.8288,2625.9,2625.8,3.80836316]
[1748958294044,0.8288,2625.9,2625.4,10.02832145]
[1748958294045,0.8288,2625.9,2625.7,3.80842704]
[1748958294345,0.8288,2625.9,2625.8,3.80836316]
[1748958295355,0.8288,2625.9,2625.7,3.80838069]
[1748958295549,0.8288,2625.9,2625.8,3.80836316]
[1748958296081,0.02,2625.9,2625.8,3.80836316]
[1748958296240,0.02,2625.9,2625.8,4.57004765]
[1748958296444,0.02,2625.9,2625.8,14.41904765]
[1748958297603,0.02,2626.9,2626.7,3.80705828]
[1748958297749,0.02,2626.9,2626.8,3.80691335]
[1748958299595,0.02,2626.9,2626.7,8.0]
[1748958300654,0.02,2626.9,2626.5,8.0]
[1748958300991,0.8069,2626.8,2626.2,1.849]
[1748958301195,0.8069,2626.8,2626.3,8.0]
[1748958301696,0.8069,2626.8,2626.2,1.849]
[1748958301897,3.80743175,2626.5,2626.2,1.849]
[1748958302102,0.55,2626.7,2625.4,6.30262887]
[1748958302103,0.8172,2626.1,2625.5,3.8087346]
[1748958302268,0.8172,2626.1,2625.9,3.80815]
[1748958302471,0.8172,2626.1,2625.8,3.80827453]
[1748958302795,0.8172,2626.1,2625.9,3.80820074]
[1748958302999,0.8172,2626.1,2625.9,3.80818877]
[1748958303168,0.8172,2626.1,2626.0,3.80807311]
[1748958303369,0.8172,2626.1,2625.5,8.0]
[1748958303597,0.38074318,2626.4,2625.5,8.0]
[1748958303598,0.8169,2626.4,2626.3,3.80763812]
[1748958303915,0.8153,2626.8,2626.5,3.80729838]
[1748958304076,0.8153,2626.8,2626.6,3.80708442]
[1748958304279,0.8153,2626.8,2626.3,11.80763812]
[1748958304473,0.8153,2626.8,2626.0,0.59629937]
[1748958304474,0.8153,2626.8,2625.9,8.0]
[1748958304687,3.80712123,2626.7,2626.2,8.0]
[1748958304888,0.8153,2626.8,2626.2,11.80768145]
[1748958305092,0.8153,2626.8,2625.9,6.618]
[1748958305275,3.80714565,2626.7,2626.1,3.80791191]
[1748958305486,0.8153,2626.8,2626.0,8.0]
[1748958305664,0.8153,2626.8,2626.0,11.80805682]
[1748958305988,0.8153,2626.8,2626.1,5.65051405]
[1748958306162,0.8153,2626.8,2626.5,8.0]
[1748958306363,0.8153,2626.8,2626.1,1.84260568]
[1748958306559,0.8153,2626.8,2626.6,3.80710041]
[1748958307161,0.8153,2626.8,2626.2,8.0]
[1748958307364,0.8153,2626.8,2626.3,10.42054552]
[1748958307365,1.27950161,2626.8,2626.3,10.42054552]
[1748958308107,1.27950161,2626.8,2626.1,8.0]
[1748958308277,0.8153,2626.8,2626.3,3.80756312]
[1748958308606,0.8153,2626.8,2626.1,8.0]
[1748958308807,0.8153,2626.8,2626.5,3.80721885]
[1748958309015,0.8153,2626.8,2626.5,3.80727024]
[1748958309189,0.8153,2626.8,2626.4,3.80741277]
[1748958309574,0.8153,2626.8,2626.6,3.80711367]
[1748958309774,0.8153,2626.8,2626.1,12.27331401]
[1748958309996,0.8153,2626.8,2626.5,3.80725804]
[1748958310240,0.02,2626.9,2626.8,3.80691335]
[1748958310533,0.02,2626.9,2626.8,18.41391335]
[1748958312313,0.02,2626.9,2626.8,8.0]
[1748958312835,0.02,2626.9,2626.8,11.80691335]
[1748958314958,0.02,2626.9,2626.8,23.20737062]
[1748958315253,0.02,2626.9,2626.8,23.80542419]
[1748958315868,0.15415417,2627.6,2627.5,3.80589914]
[1748958316142,0.15415417,2627.6,2627.5,29.62778896]
[1748958316764,0.15415417,2627.6,2627.5,21.17278896]
[1748958316966,0.15415417,2627.6,2627.5,23.65883089]
[1748958317122,0.15415417,2627.6,2627.5,14.75734107]
[1748958317464,0.15415417,2627.6,2627.5,20.26489914]
[1748958317663,0.15415417,2627.6,2627.5,20.63603166]
[1748958317866,0.15415417,2627.6,2627.5,21.10143166]
[1748958318427,0.15415417,2627.6,2627.5,12.64243166]
[1748958318724,0.15415417,2627.6,2627.5,23.66372046]
[1748958320948,0.15415417,2627.6,2627.5,15.19972046]
[1748958321147,0.15415417,2627.6,2627.5,9.849]
[1748958321364,0.15415417,2627.6,2627.5,5.65489914]
[1748958321570,0.15415417,2627.6,2627.5,1.849]
[1748958321879,0.93335417,2627.6,2627.5,1.849]
[1748958322232,0.93335417,2627.6,2627.2,6.621]
[1748958322430,0.93335417,2627.6,2627.5,3.80589914]
[1748958322878,0.93335417,2627.6,2627.4,3.80602734]
[1748958323189,0.93335417,2627.6,2627.0,1.848]
[1748958323336,0.93335417,2627.6,2627.3,8.0]
[1748958323948,4.73911587,2627.6,2627.0,1.848]
[1748958324275,0.47391159,2627.5,2627.0,12.26855503]
[1748958324480,0.47391159,2627.5,2627.0,8.462]
[1748958324632,0.8203,2627.4,2626.3,13.696]
[1748958324977,0.8203,2627.4,2626.7,8.0]
[1748958325134,0.8203,2627.4,2626.9,7.9558659]
[1748958325338,0.8203,2627.4,2627.1,3.80645421]
[1748958325590,0.8203,2627.4,2627.2,3.80633163]
[1748958325769,0.8203,2627.4,2627.0,3.80658618]
[1748958326078,0.8203,2627.4,2627.1,3.80640628]
[1748958326283,0.8203,2627.4,2627.2,3.80630358]
[1748958326589,0.8203,2627.4,2627.1,6.615]
[1748958326762,1.29832292,2627.4,2626.5,1.851]
[1748958326968,0.8203,2627.4,2626.7,8.0]
[1748958328368,0.7504,2627.2,2626.5,9.851]
[1748958328700,3.80653018,2627.1,2626.5,9.851]
[1748958328854,3.80676843,2626.9,2625.9,0.4654]
[1748958329182,0.8159,2626.7,2626.2,3.80767388]
[1748958329340,0.8159,2626.7,2626.0,8.0]
[1748958329341,0.8159,2626.7,2626.3,8.0]
[1748958329545,0.8159,2626.7,2626.3,3.80763812]
[1748958329754,0.8159,2626.7,2626.2,3.80774466]
[1748958330044,0.8159,2626.7,2626.3,3.80763812]
[1748958330282,0.8159,2626.7,2626.2,1.17636106]
[1748958330495,0.8159,2626.7,2625.9,1.851]
[1748958330703,0.8159,2626.7,2625.6,3.80856923]
[1748958330704,3.80776414,2626.3,2625.6,3.80856923]
[1748958330901,3.80775108,2626.3,2625.5,6.62]
[1748958331064,3.80764213,2626.3,2625.6,4.47057842]
[1748958331252,0.8159,2626.4,2625.7,7.9558659]
[1748958331459,0.8159,2626.4,2625.8,8.0]
[1748958331795,0.8159,2626.4,2625.9,3.80821312]
[1748958332005,0.8217,2626.8,2626.3,7.9558659]
[1748958332201,0.8217,2626.8,2626.2,8.0]
[1748958332407,0.8217,2626.8,2626.0,0.59653507]
[1748958332699,4.62869967,2626.8,2626.2,8.0]
[1748958332908,0.8217,2626.8,2626.3,3.80763798]
[1748958333110,4.62864071,2626.8,2626.1,11.80786275]
[1748958333420,4.62864071,2626.8,2626.0,8.492]
[1748958333421,3.80720653,2626.6,2626.0,8.492]
[1748958333713,0.8007,2626.2,2625.7,1.851]
[1748958334276,4.60855128,2626.2,2625.7,1.851]
[1748958334472,0.8007,2625.9,2625.1,13.712]
[1748958334706,0.8007,2625.9,2625.1,17.52127355]
[1748958334928,0.8007,2625.9,2625.4,3.80885578]
[1748958335204,0.8007,2625.9,2625.3,8.0]
[1748958335418,0.8239,2625.7,2625.1,0.02]
[1748958335571,0.7636,2625.5,2625.1,0.02]
[1748958336925,4.60876688,2625.3,2625.1,0.02]
[1748958337101,5.10401027,2625.2,2625.1,0.02]
[1748958337282,5.65401027,2625.2,2625.1,0.02]
[1748958337684,1.84477669,2625.2,2625.1,0.02]
[1748958337910,0.7789,2625.2,2625.1,0.02]
[1748958339341,0.8154,2625.5,2625.3,3.80901114]
[1748958339626,3.80733,2626.6,2625.1,0.02]
[1748958339627,0.8154,2625.8,2625.2,3.80923358]
[1748958340316,0.8154,2625.8,2625.3,8.514]
[1748958340481,0.8154,2625.8,2625.4,3.80892878]
[1748958341098,0.8154,2625.8,2625.5,3.80878705]
[1748958341320,0.8154,2625.8,2625.7,3.8085082]
[1748958341503,2.69453332,2626.8,2625.5,0.4416274]
[1748958341504,0.8041,2626.2,2625.5,0.4416274]
[1748958341704,3.80809827,2626.0,2625.4,8.0]
[1748958342006,3.80799812,2626.1,2625.4,11.80893573]
[1748958342303,0.8041,2626.2,2625.4,8.0]
[1748958342481,0.8041,2626.2,2625.4,11.80888958]
[1748958342681,3.80806987,2626.1,2625.4,8.0]
[1748958342980,3.80829078,2625.9,2625.3,1.852]
[1748958343209,5.07346272,2626.0,2625.3,5.66107114]
[1748958343520,0.8041,2626.0,2625.7,3.80844009]
[1748958343813,0.8041,2626.0,2625.3,1.852]
[1748958343987,4.61222212,2626.0,2625.3,5.66102212]
[1748958344397,4.61222212,2626.0,2625.3,1.852]
[1748958344398,0.8041,2626.0,2625.3,1.852]
[1748958344614,0.02,2627.9,2625.8,0.55]
[1748958344824,1.22787165,2628.9,2627.9,8.0]
[1748958344825,0.45064367,2628.8,2627.9,8.0]
[1748958345035,0.02,2628.9,2628.8,12.61931704]
[1748958345198,0.19851605,2631.0,2629.8,3.80257053]
[1748958345401,0.02,2631.9,2629.8,12.56309941]
[1748958345583,12.34546427,2631.7,2629.8,12.56309941]
[1748958345816,0.02,2631.9,2630.2,8.0]
[1748958345817,2.147,2631.9,2630.2,8.0]
[1748958346125,0.02,2631.9,2630.7,3.80114866]
[1748958346324,0.02,2631.9,2630.8,19.75022513]
[1748958346900,0.02,2631.9,2630.9,0.4362]
[1748958347100,0.02,2631.9,2631.7,3.79978126]
[1748958347313,0.02,2631.9,2631.3,3.80029745]
[1748958347513,0.02,2631.9,2631.3,8.0]
[1748958347944,0.02,2631.9,2631.3,11.80039458]
[1748958348093,0.02,2631.9,2631.3,8.0]
[1748958348594,0.02,2631.9,2631.3,8.31725101]
[1748958349093,0.02,2631.9,2631.3,0.31725101]
[1748958349489,0.02,2631.9,2630.4,2.205]
[1748958349689,0.02,2631.9,2630.9,3.80087146]
[1748958349947,0.57,2631.9,2631.0,0.31728719]
[1748958350157,0.02,2631.9,2631.1,3.80069172]
[1748958350463,0.02,2631.9,2631.1,0.31727513]
[1748958350748,3.80006848,2631.6,2631.1,0.31727513]
[1748958350949,3.79968082,2631.8,2631.1,0.31727513]
[1748958350950,0.55,2631.4,2631.1,0.31727513]
[1748958351153,0.55,2631.2,2630.5,0.1238773]
[1748958351450,0.55,2631.3,2630.5,0.1238773]
[1748958351663,0.55,2630.9,2630.5,0.1238773]
[1748958351931,2.58500685,2631.5,2630.5,0.1238773]
[1748958351932,0.55,2630.6,2630.5,0.1238773]
[1748958352136,0.55,2630.9,2630.5,0.1238773]
[1748958352348,0.55,2631.0,2630.5,0.1238773]
[1748958352692,3.80102758,2630.9,2630.6,0.35121835]
[1748958353014,4.35126962,2630.7,2630.6,0.35121835]
[1748958353219,0.55,2630.7,2630.6,0.35121835]